bitfinex/quotes_BTCUSD_20241014
["timestamp","ask_amount","ask_price","bid_price","bid_amount"]
[1728929263926,0.00108543,65907.0,65906.0,0.82579197]
[1728929264354,0.00108543,65907.0,65906.0,0.83979197]
[1728929265005,0.00108543,65907.0,65906.0,0.85379197]
[1728929267034,0.00108543,65907.0,65906.0,1.03197509]
[1728929269408,0.00108543,65907.0,65906.0,0.84879197]
[1728929270076,0.00509274,65907.0,65906.0,0.5435325]
[1728929270312,0.00509274,65907.0,65906.0,0.48319]
[1728929270313,0.15682074,65907.0,65906.0,0.48319]
[1728929270529,0.15682074,65907.0,65906.0,0.46919]
[1728929270530,0.00509274,65907.0,65906.0,0.46919]
[1728929270745,0.15682074,65907.0,65906.0,0.46919]
[1728929271663,0.15682074,65907.0,65906.0,0.45519]
[1728929271869,0.15682074,65907.0,65906.0,0.46219]
[1728929272087,0.15682074,65907.0,65906.0,0.512709]
[1728929272309,0.15682074,65907.0,65906.0,0.500709]
[1728929272771,0.15682074,65907.0,65906.0,0.506709]
[1728929272980,0.15682074,65907.0,65906.0,0.46119]
[1728929274948,0.15682074,65907.0,65906.0,0.45719]
[1728929275209,0.25682074,65907.0,65906.0,0.45619]
[1728929275409,0.25782074,65907.0,65906.0,0.45719]
[1728929275817,0.25682074,65907.0,65906.0,0.45519]
[1728929276022,0.25782074,65907.0,65906.0,0.45719]
[1728929278186,0.43600386,65907.0,65906.0,0.45719]
[1728929278419,0.53680386,65907.0,65906.0,0.45719]
[1728929278658,0.70033233,65907.0,65906.0,0.45719]
[1728929278773,0.78333233,65907.0,65906.0,0.45719]
[1728929279212,0.78233233,65907.0,65906.0,0.45519]
[1728929279670,0.78333233,65907.0,65906.0,0.45719]
[1728929279951,0.80633233,65907.0,65906.0,0.12916474]
[1728929280149,0.15177,65889.0,65888.0,0.22794101]
[1728929280316,0.40935312,65889.0,65888.0,0.22794101]
[1728929280531,0.41326136,65889.0,65888.0,0.22794101]
[1728929280890,0.151786,65882.0,65874.0,0.151804]
[1728929281140,0.32996912,65882.0,65881.0,0.25073511]
[1728929281373,0.00391595,65882.0,65881.0,0.25073511]
[1728929281614,0.00391595,65882.0,65881.0,0.1745821]
[1728929281836,0.17818312,65888.0,65884.0,0.151781]
[1728929282056,0.00393457,65882.0,65881.0,0.4781551]
[1728929282273,0.17818312,65888.0,65883.0,0.151783]
[1728929282495,0.17818312,65888.0,65881.0,0.3313671]
[1728929282496,0.15178,65885.0,65884.0,0.07867361]
[1728929282759,0.15570432,65887.0,65884.0,0.07867361]
[1728929282961,0.00393457,65885.0,65884.0,0.07867361]
[1728929283176,0.00393457,65885.0,65882.0,0.303571]
[1728929283177,0.48273112,65888.0,65880.0,0.22794101]
[1728929283384,0.15571557,65885.0,65880.0,0.22794101]
[1728929283590,0.15571557,65885.0,65882.0,0.151786]
[1728929283591,0.15178,65885.0,65882.0,0.151786]
[1728929283799,0.15071204,65884.0,65880.0,0.151789]
[1728929284013,0.151786,65882.0,65878.0,0.151795]
[1728929284219,0.303573,65882.0,65878.0,0.06072]
[1728929284438,0.303573,65882.0,65867.0,0.303641]
[1728929284439,0.17818312,65879.0,65867.0,0.303641]
[1728929284646,0.005,65891.0,65867.0,0.303641]
[1728929284647,0.151798,65877.0,65874.0,0.37974501]
[1728929284876,0.151791,65880.0,65875.0,0.151802]
[1728929285088,0.00355785,65876.0,65874.0,0.151804]
[1728929285377,0.151796,65878.0,65874.0,0.151804]
[1728929285600,0.17818312,65879.0,65875.0,0.0759038]
[1728929285819,0.17818312,65879.0,65874.0,0.018]
[1728929286040,0.17818312,65879.0,65874.0,0.01]
[1728929286242,0.17818312,65879.0,65875.0,0.455406]
[1728929286444,0.151798,65877.0,65874.0,0.166802]
[1728929286701,0.151802,65875.0,65874.0,0.01]
[1728929286885,0.32998512,65875.0,65874.0,0.01]
[1728929287113,0.32998512,65875.0,65867.0,0.303638]
[1728929287330,0.32998512,65875.0,65868.0,0.0613179]
[1728929287331,0.151809,65873.0,65868.0,0.0613179]
[1728929287546,0.151809,65872.0,65869.0,0.151816]
[1728929287781,0.48178812,65875.0,65867.0,0.303638]
[1728929288015,0.151806,65874.0,65871.0,0.151811]
[1728929288456,0.15181,65872.0,65867.0,0.002]
[1728929288670,0.15181,65872.0,65868.0,0.2133361]
[1728929288902,0.17818312,65875.0,65873.0,0.151806]
[1728929289125,0.151793,65879.0,65875.0,0.151801]
[1728929289362,0.151793,65879.0,65869.0,0.15352847]
[1728929289363,0.53153201,65878.0,65872.0,0.303618]
[1728929289581,0.151798,65877.0,65873.0,0.151806]
[1728929290240,0.151796,65878.0,65873.0,0.303613]
[1728929290483,0.151798,65877.0,65871.0,0.003]
[1728929290696,0.151798,65877.0,65873.0,0.151806]
[1728929291329,0.151798,65877.0,65873.0,0.151807]
[1728929291561,0.151798,65877.0,65872.0,0.3555963]
[1728929291562,0.17818312,65891.0,65874.0,0.15352847]
[1728929291818,0.001,65877.0,65874.0,0.45713747]
[1728929292033,0.30355,65887.0,65875.0,0.27885289]
[1728929292254,0.151777,65886.0,65882.0,0.151785]
[1728929292481,0.151777,65886.0,65881.0,0.303575]
[1728929292482,0.151775,65887.0,65883.0,0.151783]
[1728929292706,0.22794101,65890.0,65884.0,0.0455358]
[1728929292910,0.151773,65888.0,65885.0,0.151779]
[1728929293131,0.151773,65888.0,65883.0,0.151782]
[1728929293363,0.151775,65887.0,65883.0,0.151782]
[1728929293569,0.151771,65889.0,65882.0,0.303569]
[1728929293790,0.78348543,65907.0,65883.0,0.0607155]
[1728929293791,0.151781,65884.0,65883.0,0.0607155]
[1728929293996,0.151781,65884.0,65863.0,0.25978312]
[1728929293997,0.1518,65876.0,65871.0,0.303622]
[1728929294220,0.151798,65877.0,65876.0,0.22794101]
[1728929294439,0.1518,65876.0,65873.0,0.151806]
[1728929294664,0.303564,65884.0,65874.0,0.151804]
[1728929294844,0.22794101,65882.0,65873.0,0.045543]
[1728929295047,0.015,65890.0,65873.0,0.045543]
[1728929295048,0.303565,65884.0,65883.0,0.006]
[1728929295255,0.151781,65884.0,65883.0,0.006]
[1728929295475,0.32996412,65884.0,65883.0,0.006]
[1728929296106,0.51216412,65884.0,65883.0,0.006]
[1728929296317,0.51216412,65884.0,65873.0,0.045543]
[1728929296318,0.151804,65874.0,65873.0,0.045543]
[1728929296533,0.32998712,65874.0,65871.0,0.22794101]
[1728929296969,0.32998712,65874.0,65870.0,0.151812]
[1728929297193,0.17818312,65874.0,65871.0,0.15181]
[1728929297410,0.17818312,65874.0,65871.0,0.303623]
[1728929297637,0.151802,65876.0,65873.0,0.011]
[1728929298112,0.151802,65876.0,65872.0,0.1823363]
[1728929298113,0.151802,65875.0,65872.0,0.1823363]
[1728929298543,0.551,65894.0,65874.0,0.22794101]
[1728929298777,0.22794101,65893.0,65892.0,0.151763]
[1728929299194,0.151736,65904.0,65895.0,0.303513]
[1728929299423,0.303472,65904.0,65896.0,0.151753]
[1728929299654,0.151745,65900.0,65896.0,0.151753]
[1728929299869,0.303483,65902.0,65894.0,0.303513]
[1728929300088,0.303483,65902.0,65879.0,0.17818312]
[1728929300317,0.303472,65904.0,65893.0,0.151761]
[1728929300318,0.48167912,65899.0,65893.0,0.151761]
[1728929300540,0.32993112,65899.0,65894.0,0.151757]
[1728929300831,0.32993112,65899.0,65896.0,0.007]
[1728929301046,0.151747,65899.0,65895.0,0.151755]
[1728929301260,0.303485,65902.0,65895.0,0.156755]
[1728929301480,0.151747,65899.0,65895.0,0.151755]
[1728929301686,0.15175,65898.0,65894.0,0.151758]
[1728929301916,0.15175,65898.0,65894.0,0.004]
[1728929302127,0.17818312,65899.0,65893.0,0.009]
[1728929302347,0.151754,65897.0,65893.0,0.009]
[1728929302567,0.151753,65897.0,65895.0,0.002]
[1728929302813,0.151753,65897.0,65893.0,0.160759]
[1728929302814,0.151758,65894.0,65893.0,0.009]
[1728929303032,0.32994112,65894.0,65893.0,0.009]
[1728929303237,0.32994112,65894.0,65877.0,0.005]
[1728929303448,0.151766,65891.0,65887.0,0.151773]
[1728929303653,0.303523,65893.0,65886.0,0.303551]
[1728929303861,0.17818312,65889.0,65875.0,0.32840157]
[1728929304087,0.17818312,65900.0,65875.0,0.32840157]
[1728929304088,0.17818312,65885.0,65881.0,0.303574]
[1728929304300,0.17818312,65885.0,65884.0,0.151781]
[1728929304759,0.17818312,65885.0,65881.0,0.002]
[1728929304977,0.17818312,65885.0,65879.0,0.303585]
[1728929305203,0.17818312,65885.0,65883.0,0.151783]
[1728929305419,0.17818312,65885.0,65881.0,0.151787]
[1728929305639,0.32996212,65885.0,65882.0,0.151786]
[1728929305893,0.32996212,65885.0,65884.0,0.006]
[1728929306113,0.17818312,65885.0,65882.0,0.0305273]
[1728929306759,0.17818312,65885.0,65882.0,0.1823123]
[1728929307100,0.303564,65884.0,65877.0,0.303593]
[1728929307308,0.303564,65884.0,65871.0,0.22794101]
[1728929307309,0.17818312,65881.0,65871.0,0.22794101]
[1728929307533,0.17818312,65876.0,65875.0,0.151802]
[1728929308844,0.17818312,65876.0,65875.0,0.160802]
[1728929309682,0.17818312,65876.0,65875.0,0.02]
[1728929310140,0.17818312,65876.0,65875.0,0.009]
[1728929310141,0.32998312,65876.0,65875.0,0.009]
[1728929310381,0.32998312,65876.0,65875.0,0.021]
[1728929310583,0.32998312,65876.0,65875.0,0.012]
[1728929311037,0.32998312,65876.0,65875.0,0.022]
[1728929312141,0.303586,65880.0,65875.0,0.012]
[1728929312351,0.17818312,65876.0,65874.0,0.151804]
[1728929312561,0.17818312,65876.0,65875.0,0.003]
[1728929312768,0.17818312,65876.0,65875.0,0.014]
[1728929313193,0.17818312,65876.0,65875.0,0.003]
[1728929313640,0.17818312,65876.0,65875.0,0.154802]
[1728929314240,0.17818312,65876.0,65875.0,0.151802]
[1728929314448,0.17818312,65882.0,65875.0,0.01]
[1728929314667,0.151792,65880.0,65875.0,0.01]
[1728929314913,0.17818312,65878.0,65876.0,0.151799]
[1728929315800,0.17818312,65878.0,65875.0,0.151802]
[1728929316003,0.17818312,65878.0,65874.0,0.303607]
[1728929316004,0.17818312,65878.0,65876.0,0.151799]
[1728929316673,0.17818312,65878.0,65876.0,0.155799]
[1728929317557,0.151793,65879.0,65876.0,0.155799]
[1728929317773,0.32997612,65879.0,65876.0,0.155799]
[1728929317989,0.151798,65877.0,65876.0,0.006]
[1728929318434,0.17818312,65879.0,65877.0,0.151798]
[1728929318645,0.17818312,65879.0,65878.0,0.0157798]
[1728929318646,0.32997712,65879.0,65878.0,0.0157798]
[1728929319273,0.17818312,65879.0,65876.0,0.003]
[1728929319484,0.17818312,65879.0,65876.0,0.004]
[1728929319485,0.151796,65878.0,65876.0,0.004]
[1728929319692,0.151796,65878.0,65876.0,0.001]
[1728929319912,0.151795,65878.0,65873.0,0.151804]
[1728929320158,0.151795,65878.0,65874.0,0.151803]
[1728929320388,0.151795,65878.0,65875.0,0.151802]
[1728929320602,0.151798,65877.0,65874.0,0.151804]
[1728929320823,0.000825,65885.0,65876.0,0.22794101]
[1728929321046,0.000825,65885.0,65884.0,0.151781]
[1728929321307,0.000825,65885.0,65884.0,0.30530947]
[1728929322623,0.000825,65885.0,65884.0,0.31930947]
[1728929322835,0.000825,65885.0,65884.0,0.41646166]
[1728929323271,0.000825,65885.0,65884.0,0.26293319]
[1728929323481,0.000825,65885.0,65884.0,0.27693319]
[1728929324152,0.000825,65885.0,65884.0,0.26293319]
[1728929324367,0.000825,65885.0,65884.0,0.27593319]
[1728929324578,0.000825,65885.0,65884.0,0.26193319]
[1728929325008,0.000825,65885.0,65884.0,0.27593319]
[1728929325443,0.000825,65885.0,65884.0,0.26293319]
[1728929325855,0.000825,65885.0,65884.0,0.27693319]
[1728929334126,0.000825,65885.0,65884.0,0.028]
[1728929334336,0.152604,65885.0,65884.0,0.028]
[1728929335187,0.152604,65885.0,65876.0,0.303596]
[1728929335188,0.000825,65885.0,65876.0,0.303596]
[1728929335392,0.000825,65885.0,65877.0,0.15352847]
[1728929335393,0.17818312,65880.0,65877.0,0.15352847]
[1728929335608,0.17818312,65880.0,65879.0,0.151793]
[1728929336658,0.17818312,65880.0,65878.0,0.00165]
[1728929336862,0.151793,65879.0,65878.0,0.00165]
[1728929338302,0.32997412,65880.0,65878.0,0.00165]
[1728929338636,0.48473401,65879.0,65878.0,0.00165]
[1728929338851,0.49812147,65879.0,65878.0,0.00565]
[1728929339064,0.51277612,65879.0,65878.0,0.00165]
[1728929339257,0.50777612,65879.0,65878.0,0.00165]
[1728929339480,0.50777612,65879.0,65878.0,0.00465]
[1728929339702,0.50777612,65879.0,65878.0,0.00665]
[1728929339924,0.51277612,65879.0,65878.0,0.00665]
[1728929340131,0.51477612,65879.0,65878.0,0.00165]
[1728929340361,0.50977612,65879.0,65878.0,0.00165]
[1728929340581,0.51577612,65879.0,65878.0,0.00165]
[1728929341023,0.51077612,65879.0,65878.0,0.00165]
[1728929341674,0.51577612,65879.0,65878.0,0.00165]
[1728929341885,0.51577612,65879.0,65875.0,0.00165]
[1728929341886,0.1568,65876.0,65875.0,0.00165]
[1728929342116,0.1568,65876.0,65869.0,0.00165]
[1728929342117,0.256814,65870.0,65869.0,0.00165]
[1728929342348,0.43499712,65870.0,65869.0,0.00165]
[1728929342991,0.93310871,65870.0,65869.0,0.00165]
[1728929343239,0.151834,65861.0,65851.0,0.00165]
[1728929343465,0.50820024,65861.0,65851.0,0.00165]
[1728929344099,0.41141567,65861.0,65851.0,0.00165]
[1728929345167,0.41141567,65861.0,65860.0,0.00365]
[1728929345564,0.41141567,65861.0,65860.0,0.00465]
[1728929346651,0.41141567,65861.0,65860.0,0.00265]
[1728929346798,0.41141567,65861.0,65860.0,0.00465]
[1728929347022,0.51141567,65861.0,65860.0,0.00465]
[1728929347698,0.0932,65878.0,65860.0,0.00465]
[1728929347918,0.000825,65885.0,65873.0,0.151807]
[1728929347919,0.22794101,65874.0,65873.0,0.151807]
[1728929348145,0.22794101,65874.0,65873.0,0.1973495]
[1728929348375,0.22794101,65874.0,65873.0,0.151807]
[1728929348576,0.151801,65876.0,65871.0,0.303623]
[1728929348782,0.303576,65882.0,65872.0,0.303615]
[1728929348990,0.308576,65882.0,65872.0,0.303615]
[1728929349134,0.002,65874.0,65873.0,0.304612]
[1728929349349,0.002,65874.0,65873.0,0.456419]
[1728929349550,0.151796,65878.0,65874.0,0.151803]
[1728929349766,0.002,65876.0,65873.0,0.303612]
[1728929349970,0.002,65876.0,65875.0,0.151802]
[1728929351779,0.000825,65879.0,65878.0,0.151795]
[1728929353404,0.000825,65879.0,65878.0,0.156795]
[1728929359558,0.000825,65879.0,65878.0,0.31032347]
[1728929360712,0.000825,65879.0,65878.0,0.31258134]
[1728929364199,0.02320349,65879.0,65878.0,0.31032347]
[1728929366474,0.02320349,65879.0,65878.0,0.30732347]
[1728929367319,0.02320349,65879.0,65878.0,0.30532347]
[1728929367526,0.02320349,65879.0,65878.0,0.31732347]
[1728929368713,0.02320349,65879.0,65878.0,0.32132347]
[1728929369167,0.02320349,65879.0,65878.0,0.31732347]
[1728929369391,0.02320349,65879.0,65878.0,0.33032347]
[1728929375527,0.02320349,65879.0,65878.0,0.176795]
[1728929377812,0.02320349,65879.0,65878.0,0.33032347]
[1728929378511,0.02320349,65879.0,65878.0,0.42424102]
[1728929380546,0.02320349,65879.0,65878.0,0.33032347]
[1728929380997,0.02320349,65879.0,65878.0,0.176795]
[1728929381918,0.02320349,65879.0,65878.0,0.025]
[1728929382135,0.02320349,65879.0,65878.0,0.176795]
[1728929383008,0.17499649,65879.0,65878.0,0.025]
[1728929383217,0.02320349,65879.0,65878.0,0.025]
[1728929383881,0.02320349,65879.0,65878.0,0.012]
[1728929384107,0.02320349,65879.0,65878.0,0.151795]
[1728929384358,0.02320349,65879.0,65878.0,0.161795]
[1728929385491,0.02320349,65879.0,65878.0,0.01]
[1728929385936,0.17499649,65879.0,65878.0,0.01]
[1728929386167,0.02320349,65879.0,65878.0,0.01]
[1728929386880,0.02320349,65879.0,65878.0,0.161795]
[1728929387544,0.02320349,65879.0,65878.0,0.2388598]
[1728929388073,0.02320349,65879.0,65878.0,0.39238827]
[1728929388762,0.000825,65879.0,65878.0,0.39238827]
[1728929389896,0.000825,65879.0,65878.0,0.38638827]
[1728929390127,0.000825,65879.0,65878.0,0.38238827]
[1728929390354,0.000825,65879.0,65878.0,0.39638827]
[1728929390624,0.000825,65879.0,65878.0,0.41038827]
[1728929392425,0.000825,65879.0,65878.0,0.41338827]
[1728929393406,0.000825,65879.0,65878.0,0.50349663]
[1728929393613,0.000825,65879.0,65878.0,0.41338827]
[1728929393815,0.000825,65879.0,65878.0,0.50372834]
[1728929394217,0.000825,65879.0,65878.0,0.41338827]
[1728929394479,0.000825,65879.0,65878.0,0.33632347]
[1728929395165,0.000825,65879.0,65878.0,0.42667861]
[1728929395773,0.000825,65879.0,65878.0,0.42669135]
[1728929397164,0.000825,65879.0,65878.0,0.33632347]
[1728929403506,0.000825,65879.0,65878.0,0.44931472]
[1728929408868,0.000825,65879.0,65878.0,0.33632347]
[1728929409090,0.000825,65879.0,65878.0,0.44930054]
[1728929413860,0.000825,65879.0,65878.0,0.33632347]
[1728929414812,0.000825,65879.0,65878.0,0.79170347]
[1728929416818,0.000825,65879.0,65878.0,1.29170347]
[1728929423357,1e-06,65885.0,65884.0,0.266781]
[1728929423584,1e-06,65885.0,65884.0,1.57250545]
[1728929423812,1e-06,65885.0,65884.0,1.3299722]
[1728929424919,1e-06,65885.0,65884.0,1.3309722]
[1728929425390,1e-06,65885.0,65884.0,1.3299722]
[1728929425610,1e-06,65885.0,65884.0,1.52958553]
[1728929425816,1e-06,65885.0,65884.0,1.3309722]
[1728929425979,1e-06,65885.0,65884.0,1.35256677]
[1728929426222,1e-06,65885.0,65884.0,1.35356677]
[1728929426427,1e-06,65885.0,65884.0,1.30446704]
[1728929426711,1e-06,65885.0,65884.0,0.94215947]
[1728929426921,1e-06,65885.0,65884.0,0.76265947]
[1728929427352,1e-06,65885.0,65884.0,0.80774638]
[1728929428025,1e-06,65885.0,65884.0,0.76165947]
[1728929428247,1e-06,65885.0,65884.0,0.76065947]
[1728929428497,1e-06,65885.0,65884.0,0.76165947]
[1728929428795,0.001001,65885.0,65884.0,0.82077257]
[1728929429005,1e-06,65885.0,65884.0,0.80577257]
[1728929429234,0.002001,65885.0,65884.0,0.83377257]
[1728929429667,0.002001,65885.0,65884.0,0.78865947]
[1728929430835,0.002001,65885.0,65884.0,0.83380395]
[1728929431768,0.002001,65885.0,65884.0,0.78865947]
[1728929432445,0.002001,65885.0,65884.0,0.85632142]
[1728929432651,0.002001,65885.0,65884.0,0.85638029]
[1728929433332,0.002001,65885.0,65884.0,0.78865947]
[1728929433573,0.002001,65885.0,65884.0,0.8788754]
[1728929433840,0.002001,65885.0,65884.0,0.78865947]
[1728929434071,0.002001,65885.0,65884.0,0.85638432]
[1728929434297,0.002001,65885.0,65884.0,0.78865947]
[1728929435464,0.23278,65885.0,65884.0,0.48335]
[1728929435944,0.2368846,65885.0,65884.0,0.48335]
[1728929436703,0.2358846,65885.0,65884.0,0.46935]
[1728929437637,0.2348846,65885.0,65884.0,0.45535]
[1728929437875,0.2348846,65885.0,65884.0,0.45835]
[1728929438107,0.2348846,65885.0,65884.0,0.45935]
[1728929438834,0.2348846,65885.0,65884.0,0.45635]
[1728929439084,0.0831056,65885.0,65884.0,0.6692452]
[1728929439319,0.0831056,65885.0,65884.0,0.6722452]
[1728929439563,0.079001,65885.0,65884.0,0.6738952]
[1728929440285,0.23078,65885.0,65884.0,0.5221142]
[1728929441231,0.23488354,65885.0,65884.0,0.5221142]
[1728929441724,0.00410454,65885.0,65884.0,0.67564267]
[1728929441952,0.00410454,65885.0,65884.0,0.82742367]
[1728929442203,1e-06,65885.0,65884.0,0.82742367]
[1728929442932,1e-06,65885.0,65884.0,0.87161451]
[1728929443163,0.001001,65885.0,65884.0,0.88561451]
[1728929443619,0.001001,65885.0,65884.0,0.88261451]
[1728929443848,0.001001,65885.0,65884.0,0.83742367]
[1728929444136,0.002001,65885.0,65884.0,0.89657952]
[1728929444368,0.001001,65885.0,65884.0,0.88257952]
[1728929444616,1e-06,65885.0,65884.0,0.86857952]
[1728929444848,0.002001,65885.0,65884.0,0.89657952]
[1728929445045,0.001001,65885.0,65884.0,0.83742367]
[1728929445311,0.002001,65885.0,65884.0,0.85142367]
[1728929446451,0.002001,65885.0,65884.0,1.03252367]
[1728929448384,0.002001,65885.0,65884.0,1.03452367]
[1728929448627,0.002001,65885.0,65884.0,1.03252367]
[1728929449078,0.002001,65885.0,65884.0,1.53252367]
[1728929450920,0.002001,65885.0,65884.0,1.64528762]
[1728929452611,0.002001,65885.0,65884.0,1.64728762]
[1728929452854,0.002001,65885.0,65884.0,1.53452367]
[1728929453092,0.002001,65885.0,65884.0,1.64452367]
[1728929453760,0.002001,65885.0,65884.0,1.66752367]
[1728929454672,0.002001,65885.0,65884.0,1.64252367]
[1728929454891,0.002001,65885.0,65884.0,1.46642367]
[1728929456831,0.002001,65885.0,65884.0,1.45642367]
[1728929457084,0.002001,65885.0,65884.0,1.46642367]
[1728929457333,0.002001,65885.0,65884.0,1.35142367]
[1728929457795,0.002001,65885.0,65884.0,1.41908591]
[1728929459688,0.002001,65885.0,65884.0,1.35142367]
[1728929459913,0.002001,65885.0,65884.0,1.41908365]
[1728929460129,0.002001,65885.0,65884.0,1.50718365]
[1728929460355,0.002001,65885.0,65884.0,1.53532367]
[1728929460796,0.002001,65885.0,65884.0,1.62550652]
[1728929461266,0.002001,65885.0,65884.0,1.62550065]
[1728929463983,0.002001,65885.0,65884.0,1.53532367]
[1728929464427,0.002001,65885.0,65884.0,1.62551455]
[1728929464655,0.002001,65885.0,65884.0,1.54532367]
[1728929465128,0.002001,65885.0,65884.0,1.56225583]
[1728929465358,0.002001,65885.0,65884.0,1.47915583]
[1728929465819,0.002001,65885.0,65884.0,1.46915583]
[1728929466037,0.002001,65885.0,65884.0,1.35142367]
[1728929466276,0.002001,65885.0,65884.0,1.41907417]
[1728929466502,0.002001,65885.0,65884.0,1.29030947]
[1728929467174,0.076501,65885.0,65884.0,1.122781]
[1728929467652,0.077501,65885.0,65884.0,1.135781]
[1728929467882,0.077501,65885.0,65884.0,0.984]
[1728929468119,0.08082179,65885.0,65884.0,0.97]
[1728929468359,0.07982179,65885.0,65884.0,1.122781]
[1728929468592,0.08182179,65885.0,65884.0,1.129781]
[1728929468819,0.077501,65885.0,65884.0,1.129781]
[1728929469037,0.076501,65885.0,65884.0,1.115781]
[1728929469233,0.076501,65885.0,65884.0,1.123781]
[1728929469457,0.077501,65885.0,65884.0,1.123781]
[1728929473204,0.077501,65885.0,65884.0,0.972]
[1728929473448,0.22928,65885.0,65884.0,0.972]
[1728929473916,0.23357403,65885.0,65884.0,0.972]
[1728929474141,0.23157403,65885.0,65884.0,0.957]
[1728929474391,0.23157403,65885.0,65884.0,1.0667]
[1728929474392,0.08079503,65885.0,65884.0,1.0667]
[1728929474642,0.00429503,65885.0,65884.0,1.211481]
[1728929474929,1e-06,65885.0,65884.0,1.204481]
[1728929475155,1e-06,65885.0,65884.0,1.220481]
[1728929475156,0.001001,65885.0,65884.0,1.220481]
[1728929478198,0.00530912,65885.0,65884.0,1.220481]
[1728929478497,0.001001,65885.0,65884.0,1.220481]
[1728929478695,0.001001,65885.0,65884.0,1.124781]
[1728929478864,0.00530912,65885.0,65884.0,1.124781]
[1728929480627,0.00530912,65885.0,65884.0,1.27830947]
[1728929480628,0.001001,65885.0,65884.0,1.27830947]
[1728929480841,0.001001,65885.0,65884.0,0.77830947]
[1728929481799,1e-06,65885.0,65884.0,0.76230947]
[1728929482020,1e-06,65885.0,65884.0,0.77030947]
[1728929482239,0.001001,65885.0,65884.0,0.78030947]
[1728929482965,0.001001,65885.0,65884.0,0.87747223]
[1728929483206,0.001001,65885.0,65884.0,1.49561567]
[1728929483412,0.001001,65885.0,65884.0,1.37480947]
[1728929483630,0.001001,65885.0,65884.0,1.37280947]
[1728929484522,0.001001,65885.0,65884.0,1.38580947]
[1728929485639,0.001001,65885.0,65884.0,1.38380947]
[1728929485864,0.001001,65885.0,65884.0,1.28830947]
[1728929486314,0.001001,65885.0,65884.0,1.40098269]
[1728929486523,0.001001,65885.0,65884.0,1.40099296]
[1728929486747,0.001001,65885.0,65884.0,1.28830947]
[1728929490577,0.001001,65885.0,65884.0,1.28330947]
[1728929490811,0.001001,65885.0,65884.0,1.28830947]
[1728929491033,0.001001,65885.0,65884.0,1.40100422]
[1728929491469,0.001001,65885.0,65884.0,1.28830947]
[1728929491688,0.001001,65885.0,65884.0,1.28330947]
[1728929494368,0.001001,65885.0,65884.0,1.40030947]
[1728929494608,0.001001,65885.0,65884.0,1.44724307]
[1728929494854,0.001001,65885.0,65884.0,1.54213311]
[1728929495305,0.001001,65885.0,65884.0,1.53113311]
[1728929495550,1e-06,65885.0,65884.0,1.52113311]
[1728929495785,1e-06,65885.0,65884.0,1.53513311]
[1728929496702,1e-06,65885.0,65884.0,1.54913311]
[1728929497178,1e-06,65885.0,65884.0,1.52113311]
[1728929497623,1e-06,65885.0,65884.0,1.54913311]
[1728929498744,1e-06,65885.0,65884.0,1.50220947]
[1728929502686,1e-06,65885.0,65884.0,1.51001388]
[1728929504042,1e-06,65885.0,65884.0,1.61401388]
[1728929505577,1e-06,65885.0,65884.0,1.62008888]
[1728929509634,1e-06,65885.0,65884.0,1.63514107]
[1728929509873,1e-06,65885.0,65884.0,1.50018888]
[1728929510332,1e-06,65885.0,65884.0,1.49411388]
[1728929511033,1e-06,65885.0,65884.0,1.41311388]
[1728929511983,1e-06,65885.0,65884.0,1.40530947]
[1728929512239,1e-06,65885.0,65884.0,1.40030947]
[1728929512470,1e-06,65885.0,65884.0,1.5128015]
[1728929513867,1e-06,65885.0,65884.0,1.5178015]
[1728929514527,1e-06,65885.0,65884.0,1.40530947]
[1728929516797,1e-06,65885.0,65884.0,1.45229981]
[1728929523555,1e-06,65885.0,65884.0,1.58745296]
[1728929525624,1e-06,65885.0,65884.0,1.45229981]
[1728929528557,1e-06,65885.0,65884.0,1.73176188]
[1728929528842,0.0797,65902.0,65900.0,0.328998]
[1728929529091,0.0797,65902.0,65900.0,1.05054256]
[1728929530461,0.0797,65902.0,65900.0,0.87328956]
[1728929531171,0.0797,65902.0,65900.0,1.39928956]
[1728929534530,0.0797,65902.0,65900.0,1.28651347]
[1728929534750,0.0797,65902.0,65900.0,1.3993745]
[1728929534965,0.0797,65902.0,65900.0,1.28651347]
[1728929535402,0.0797,65902.0,65900.0,1.39937267]
[1728929535621,0.0797,65902.0,65900.0,1.28651347]
[1728929539052,0.0797,65902.0,65900.0,1.39939118]
[1728929539693,0.0797,65902.0,65900.0,1.28651347]
[1728929541817,0.0797,65902.0,65900.0,1.39940267]
[1728929542031,0.0797,65902.0,65900.0,1.3994076]
[1728929542738,0.00108543,65907.0,65900.0,1.3994076]
[1728929544094,0.00108543,65907.0,65900.0,1.28651347]
[1728929544313,0.00108543,65907.0,65900.0,1.46376647]
[1728929545379,0.00108543,65907.0,65900.0,1.45176647]
[1728929546304,0.00108543,65907.0,65900.0,1.43776647]
[1728929546705,0.00108543,65907.0,65900.0,1.46576647]
[1728929546929,0.00108543,65907.0,65900.0,1.28851347]
[1728929547146,0.0821,65903.0,65900.0,1.27451347]
[1728929547378,0.0821,65903.0,65900.0,1.26051347]
[1728929547595,0.0821,65903.0,65900.0,1.28851347]
[1728929548079,0.176125,65901.0,65900.0,1.02300651]
[1728929548310,0.176125,65901.0,65900.0,0.95524]
[1728929548540,0.181532,65901.0,65900.0,0.96924]
[1728929548762,0.176125,65901.0,65900.0,0.96924]
[1728929548929,0.181532,65901.0,65900.0,0.96924]
[1728929549366,0.181532,65901.0,65900.0,1.120985]
[1728929549761,0.176125,65901.0,65900.0,1.134985]
[1728929549977,0.181532,65901.0,65900.0,1.134985]
[1728929550184,0.181532,65901.0,65900.0,1.120985]
[1728929550386,0.181532,65901.0,65900.0,1.106985]
[1728929550540,0.181532,65901.0,65900.0,1.123985]
[1728929550740,0.181532,65901.0,65900.0,1.109985]
[1728929551146,0.000825,65901.0,65900.0,1.33227998]
[1728929551512,0.000825,65901.0,65900.0,1.26451347]
[1728929552831,0.000825,65901.0,65900.0,1.26151347]
[1728929553254,0.000825,65901.0,65900.0,1.26051347]
[1728929553710,0.000825,65901.0,65900.0,1.39149162]
[1728929554427,0.000825,65901.0,65900.0,1.37349162]
[1728929554673,0.000825,65901.0,65900.0,1.39649162]